[Event "*** Titled Tuesday Blitz"]
[Site "Chess.com"]
[Date "2020.12.29"]
[Round "4"]
[White "Jungle_Jaguar"]
[Black "Grandelicious"]
[Result "0-1"]
[WhiteElo "2621"]
[BlackElo "2858"]
[TimeControl "180+1"]
[EndTime "10:39:08 PST"]
[Termination "Grandelicious won by checkmate"]

1. e4 {[%clk 0:03:00.9]} 1... c6 {[%clk 0:03:00]} 2. d4 {[%clk 0:03:00]} 2... d5
{[%clk 0:03:00.6]} 3. e5 {[%clk 0:03:00.5]} 3... c5 {[%clk 0:03:01.2]} 4. dxc5
{[%clk 0:03:00.4]} 4... e6 {[%clk 0:03:01.9]} 5. a3 {[%clk 0:03:00.8]} 5... Bxc5
{[%clk 0:03:02]} 6. b4 {[%clk 0:03:01]} 6... Be7 {[%clk 0:03:01.9]} 7. Bb2
{[%clk 0:03:00.5]} 7... a5 {[%clk 0:03:01.8]} 8. b5 {[%clk 0:02:56.8]} 8... Nd7
{[%clk 0:03:00.8]} 9. Nf3 {[%clk 0:02:56.5]} 9... Nh6 {[%clk 0:02:58.6]} 10.
Nbd2 {[%clk 0:02:56]} 10... O-O {[%clk 0:02:47.9]} 11. Bd3 {[%clk 0:02:56.1]}
11... f6 {[%clk 0:02:47.5]} 12. O-O {[%clk 0:02:53.9]} 12... Nf7 {[%clk
0:02:46.6]} 13. exf6 {[%clk 0:02:40.1]} 13... Bxf6 {[%clk 0:02:47.5]} 14. Bxf6
{[%clk 0:02:26.3]} 14... Qxf6 {[%clk 0:02:48.4]} 15. c4 {[%clk 0:02:18.2]} 15...
Nc5 {[%clk 0:02:39.9]} 16. Bc2 {[%clk 0:02:15.9]} 16... a4 {[%clk 0:02:09.8]}
17. Re1 {[%clk 0:02:07]} 17... Bd7 {[%clk 0:02:03.4]} 18. Rb1 {[%clk 0:02:03.2]}
18... Rad8 {[%clk 0:01:51.5]} 19. cxd5 {[%clk 0:02:01.3]} 19... exd5 {[%clk
0:01:49.6]} 20. h3 {[%clk 0:01:58.3]} 20... Bf5 {[%clk 0:01:16.4]} 21. Rb4
{[%clk 0:01:46.8]} 21... Ne4 {[%clk 0:01:09.6]} 22. Nxe4 {[%clk 0:01:19.5]}
22... dxe4 {[%clk 0:01:06.2]} 23. Nd4 {[%clk 0:01:19.9]} 23... Ne5 {[%clk
0:00:59.2]} 24. Re3 {[%clk 0:00:25.6]} 24... Bg6 {[%clk 0:00:46.9]} 25. Qe1
{[%clk 0:00:22.2]} 25... Nd3 {[%clk 0:00:42.9]} 26. Bxd3 {[%clk 0:00:22.2]}
26... exd3 {[%clk 0:00:43.8]} 27. Nf3 {[%clk 0:00:14.9]} 27... Rc8 {[%clk
0:00:24.7]} 28. Qd1 {[%clk 0:00:10.3]} 28... Rc2 {[%clk 0:00:20.4]} 29. Rxa4
{[%clk 0:00:06.8]} 29... Qc3 {[%clk 0:00:20]} 30. Kh2 {[%clk 0:00:06.7]} 30...
Rxf2 {[%clk 0:00:16.8]} 31. Rg4 {[%clk 0:00:05.7]} 31... Qc2 {[%clk 0:00:15.4]}
32. Qa1 {[%clk 0:00:05]} 32... R2xf3 {[%clk 0:00:11.7]} 33. Rxf3 {[%clk
0:00:02.5]} 33... Rxf3 {[%clk 0:00:12.6]} 34. Qe5 {[%clk 0:00:02.3]} 34... Rf8
{[%clk 0:00:11.7]} 35. Qd5+ {[%clk 0:00:02.7]} 35... Kh8 {[%clk 0:00:11.8]} 36.
Rd4 {[%clk 0:00:02.1]} 36... Qc7+ {[%clk 0:00:11.7]} 37. Kh1 {[%clk 0:00:01.4]}
37... Rf1# {[%clk 0:00:10.1]} 0-1

[Event "*** Titled Tuesday Blitz"]
[Site "Chess.com"]
[Date "2020.12.29"]
[Round "4"]
[White "Sadykov_Ramil"]
[Black "Beca95"]
[Result "0-1"]
[WhiteElo "2534"]
[BlackElo "2831"]
[TimeControl "180+1"]
[EndTime "10:39:08 PST"]
[Termination "Beca95 won by resignation"]

1. e4 {[%clk 0:03:00.7]} 1... Nc6 {[%clk 0:03:00]} 2. Nf3 {[%clk 0:02:55.4]}
2... e5 {[%clk 0:02:59.6]} 3. Bb5 {[%clk 0:02:54.7]} 3... a6 {[%clk 0:02:59.5]}
4. Bxc6 {[%clk 0:02:54.3]} 4... dxc6 {[%clk 0:02:59.4]} 5. Nc3 {[%clk
0:02:54.3]} 5... f6 {[%clk 0:02:58.5]} 6. d4 {[%clk 0:02:53.1]} 6... exd4 {[%clk
0:02:58]} 7. Qxd4 {[%clk 0:02:53.7]} 7... Qxd4 {[%clk 0:02:57.6]} 8. Nxd4 {[%clk
0:02:54.6]} 8... Bd7 {[%clk 0:02:55.1]} 9. Be3 {[%clk 0:02:40.8]} 9... O-O-O
{[%clk 0:02:54.4]} 10. O-O-O {[%clk 0:02:41.1]} 10... h5 {[%clk 0:02:53.1]} 11.
h4 {[%clk 0:02:37.4]} 11... Nh6 {[%clk 0:02:52.5]} 12. f3 {[%clk 0:02:37.2]}
12... Nf7 {[%clk 0:02:51.9]} 13. Nde2 {[%clk 0:02:29.8]} 13... Bd6 {[%clk
0:02:49.2]} 14. b3 {[%clk 0:02:23.4]} 14... c5 {[%clk 0:02:47.3]} 15. Nd5 {[%clk
0:02:19.3]} 15... b6 {[%clk 0:02:36]} 16. Bf4 {[%clk 0:02:15.6]} 16... Bxf4+
{[%clk 0:02:34.2]} 17. Nexf4 {[%clk 0:02:14.6]} 17... Ne5 {[%clk 0:02:29.4]} 18.
Ne7+ {[%clk 0:02:01.2]} 18... Kb7 {[%clk 0:02:28.5]} 19. Neg6 {[%clk 0:02:01.7]}
19... Nxg6 {[%clk 0:01:28.5]} 20. Nxg6 {[%clk 0:02:02.6]} 20... Rhg8 {[%clk
0:01:28.7]} 21. Nf4 {[%clk 0:01:48.8]} 21... g6 {[%clk 0:01:28.5]} 22. c4 {[%clk
0:01:36.1]} 22... b5 {[%clk 0:01:01.9]} 23. Rd5 {[%clk 0:01:22.6]} 23... Bc6
{[%clk 0:00:50.7]} 24. Rxd8 {[%clk 0:01:17.1]} 24... Rxd8 {[%clk 0:00:51.6]} 25.
Ne6 {[%clk 0:01:09.6]} 25... Rd6 {[%clk 0:00:49.1]} 26. Nf4 {[%clk 0:00:42.5]}
26... Be8 {[%clk 0:00:47.3]} 27. Rd1 {[%clk 0:00:41.8]} 27... Bf7 {[%clk
0:00:41.6]} 28. Rxd6 {[%clk 0:00:34]} 28... cxd6 {[%clk 0:00:42.5]} 29. Nd5
{[%clk 0:00:34.8]} 29... Bxd5 {[%clk 0:00:20.7]} 30. exd5 {[%clk 0:00:34.8]}
30... g5 {[%clk 0:00:19.3]} 31. g3 {[%clk 0:00:27.1]} 31... Kb6 {[%clk
0:00:18.9]} 32. Kd2 {[%clk 0:00:26.8]} 32... Ka5 {[%clk 0:00:18.5]} 33. g4
{[%clk 0:00:25.4]} 33... gxh4 {[%clk 0:00:11.5]} 34. Ke3 {[%clk 0:00:22.1]}
34... hxg4 {[%clk 0:00:10.5]} 35. fxg4 {[%clk 0:00:16.8]} 35... bxc4 {[%clk
0:00:10.8]} 36. bxc4 {[%clk 0:00:15.6]} 36... Kb4 {[%clk 0:00:11.2]} 37. Ke4
{[%clk 0:00:10.6]} 37... h3 {[%clk 0:00:09.6]} 38. Kf3 {[%clk 0:00:10]} 38...
Kxc4 {[%clk 0:00:10]} 39. Kg3 {[%clk 0:00:09.3]} 39... Kd3 {[%clk 0:00:10.2]}
40. Kxh3 {[%clk 0:00:08.8]} 40... c4 {[%clk 0:00:09.9]} 0-1

[Event "*** Titled Tuesday Blitz"]
[Site "Chess.com"]
[Date "2020.12.29"]
[Round "4"]
[White "imdvb6307"]
[Black "Nadtkins"]
[Result "1-0"]
[WhiteElo "2380"]
[BlackElo "2525"]
[TimeControl "180+1"]
[EndTime "10:39:08 PST"]
[Termination "imdvb6307 won on time"]

1. e4 {[%clk 0:03:00.9]} 1... d5 {[%clk 0:02:59.2]} 2. Nc3 {[%clk 0:02:57.3]}
2... d4 {[%clk 0:02:57.5]} 3. Nce2 {[%clk 0:02:57.3]} 3... e5 {[%clk 0:02:56.7]}
4. Ng3 {[%clk 0:02:57.2]} 4... Be6 {[%clk 0:02:46.5]} 5. Nf3 {[%clk 0:02:56.2]}
5... f6 {[%clk 0:02:46]} 6. Bb5+ {[%clk 0:02:54.4]} 6... c6 {[%clk 0:02:46.1]}
7. Ba4 {[%clk 0:02:54.5]} 7... h5 {[%clk 0:02:46.5]} 8. h3 {[%clk 0:02:51]} 8...
h4 {[%clk 0:02:30.1]} 9. Nf1 {[%clk 0:02:50.6]} 9... Na6 {[%clk 0:02:17.1]} 10.
Bb3 {[%clk 0:02:34.4]} 10... Bxb3 {[%clk 0:02:15.7]} 11. axb3 {[%clk 0:02:33.6]}
11... d3 {[%clk 0:02:16.3]} 12. c3 {[%clk 0:01:58.6]} 12... Nc5 {[%clk
0:02:10.6]} 13. Ne3 {[%clk 0:01:41.8]} 13... Nxe4 {[%clk 0:02:03.5]} 14. O-O
{[%clk 0:01:40.3]} 14... Bc5 {[%clk 0:01:56.5]} 15. Re1 {[%clk 0:01:37.3]} 15...
Ne7 {[%clk 0:01:51.3]} 16. b4 {[%clk 0:01:35.3]} 16... Bb6 {[%clk 0:01:50.9]}
17. Qb3 {[%clk 0:01:35.4]} 17... Qd7 {[%clk 0:01:42.2]} 18. Qc4 {[%clk
0:01:34.8]} 18... Nd6 {[%clk 0:01:35.6]} 19. Qb3 {[%clk 0:01:31]} 19... e4
{[%clk 0:01:33.8]} 20. Nh2 {[%clk 0:01:27.5]} 20... f5 {[%clk 0:01:29]} 21. Nc4
{[%clk 0:01:19.8]} 21... Nxc4 {[%clk 0:01:23.9]} 22. Qxc4 {[%clk 0:01:19.8]}
22... Qd5 {[%clk 0:01:24.3]} 23. Qxd5 {[%clk 0:01:18]} 23... cxd5 {[%clk
0:01:25.2]} 24. b3 {[%clk 0:01:16.6]} 24... O-O-O {[%clk 0:01:12.7]} 25. b5
{[%clk 0:01:16.7]} 25... g5 {[%clk 0:01:00.9]} 26. Ba3 {[%clk 0:01:16]} 26...
Ng6 {[%clk 0:00:57.3]} 27. Bb4 {[%clk 0:01:15]} 27... Ne5 {[%clk 0:00:50.9]} 28.
Ba5 {[%clk 0:01:14.5]} 28... Kc7 {[%clk 0:00:45.2]} 29. Bxb6+ {[%clk 0:01:12.2]}
29... axb6 {[%clk 0:00:45.4]} 30. f3 {[%clk 0:01:07.1]} 30... Ra8 {[%clk
0:00:43.8]} 31. Kf2 {[%clk 0:01:05.8]} 31... Ra5 {[%clk 0:00:39.9]} 32. Nf1
{[%clk 0:01:01.4]} 32... Rha8 {[%clk 0:00:37.5]} 33. Rxa5 {[%clk 0:00:55.6]}
33... Rxa5 {[%clk 0:00:38.4]} 34. Ne3 {[%clk 0:00:55.5]} 34... Ra2 {[%clk
0:00:27.7]} 35. Rd1 {[%clk 0:00:51.1]} 35... Kd6 {[%clk 0:00:19.1]} 36. Nxf5+
{[%clk 0:00:51.1]} 36... Kc5 {[%clk 0:00:18.5]} 37. Nd4 {[%clk 0:00:50.9]} 37...
Rb2 {[%clk 0:00:14.9]} 38. Ke3 {[%clk 0:00:50.8]} 38... Ng6 {[%clk 0:00:12.8]}
39. fxe4 {[%clk 0:00:49.9]} 39... dxe4 {[%clk 0:00:13.7]} 40. Kxe4 {[%clk
0:00:49.9]} 40... Nf4 {[%clk 0:00:14.3]} 41. Kf3 {[%clk 0:00:46.7]} 41... Ne6
{[%clk 0:00:09.2]} 42. Nxe6+ {[%clk 0:00:45.8]} 42... Kxb5 {[%clk 0:00:08.9]}
43. Nd4+ {[%clk 0:00:45.9]} 43... Kc5 {[%clk 0:00:07.4]} 44. Ke3 {[%clk
0:00:46.3]} 44... Kd5 {[%clk 0:00:07.9]} 45. Rf1 {[%clk 0:00:46.4]} 45... Ke5
{[%clk 0:00:07.5]} 46. Rf5+ {[%clk 0:00:46.5]} 46... Kd6 {[%clk 0:00:08.4]} 47.
Rxg5 {[%clk 0:00:46.8]} 47... b5 {[%clk 0:00:08.7]} 48. Rxb5 {[%clk 0:00:45.5]}
48... Kc7 {[%clk 0:00:09.6]} 49. Rh5 {[%clk 0:00:44.1]} 49... b6 {[%clk
0:00:10.5]} 50. b4 {[%clk 0:00:44.5]} 50... Rb1 {[%clk 0:00:09.1]} 51. Rxh4
{[%clk 0:00:44.5]} 51... Re1+ {[%clk 0:00:09.3]} 52. Kxd3 {[%clk 0:00:44.8]} 1-0

[Event "*** Titled Tuesday Blitz"]
[Site "Chess.com"]
[Date "2020.12.29"]
[Round "4"]
[White "Carnivoras"]
[Black "ExtremeLearner"]
[Result "1-0"]
[WhiteElo "2607"]
[BlackElo "2360"]
[TimeControl "180+1"]
[EndTime "10:39:10 PST"]
[Termination "Carnivoras won on time"]

1. d4 {[%clk 0:02:54.7]} 1... Nf6 {[%clk 0:02:58.2]} 2. c4 {[%clk 0:02:55.1]}
2... c5 {[%clk 0:02:58.5]} 3. d5 {[%clk 0:02:54.6]} 3... b5 {[%clk 0:02:58.3]}
4. cxb5 {[%clk 0:02:53.9]} 4... a6 {[%clk 0:02:58.3]} 5. bxa6 {[%clk 0:02:54.8]}
5... g6 {[%clk 0:02:54.9]} 6. Nc3 {[%clk 0:02:54.4]} 6... Bg7 {[%clk 0:02:52.3]}
7. e4 {[%clk 0:02:53.9]} 7... O-O {[%clk 0:02:52.2]} 8. Nf3 {[%clk 0:02:53.2]}
8... d6 {[%clk 0:02:51.5]} 9. Bb5 {[%clk 0:02:46.3]} 9... Bxa6 {[%clk 0:02:48]}
10. Bxa6 {[%clk 0:02:46.4]} 10... Nxa6 {[%clk 0:02:47.6]} 11. O-O {[%clk
0:02:46.7]} 11... Qa5 {[%clk 0:02:43.2]} 12. Bd2 {[%clk 0:02:44.5]} 12... Rfb8
{[%clk 0:02:42.1]} 13. Rb1 {[%clk 0:02:40.7]} 13... Nb4 {[%clk 0:02:28.4]} 14.
a3 {[%clk 0:02:36.3]} 14... Nd3 {[%clk 0:02:00.2]} 15. Qc2 {[%clk 0:02:07.6]}
15... c4 {[%clk 0:01:57.7]} 16. b3 {[%clk 0:01:46]} 16... Qxa3 {[%clk
0:01:49.6]} 17. bxc4 {[%clk 0:01:45.2]} 17... Nc5 {[%clk 0:01:43.7]} 18. e5
{[%clk 0:01:39]} 18... Ne8 {[%clk 0:01:10.2]} 19. Nb5 {[%clk 0:01:14.2]} 19...
Qa2 {[%clk 0:00:48.5]} 20. Qxa2 {[%clk 0:00:59]} 20... Rxa2 {[%clk 0:00:48]} 21.
exd6 {[%clk 0:00:57.8]} 21... exd6 {[%clk 0:00:44.1]} 22. Bf4 {[%clk 0:00:56.3]}
22... Rd8 {[%clk 0:00:30.5]} 23. Rfe1 {[%clk 0:00:53.6]} 23... h6 {[%clk
0:00:22.7]} 24. Bg3 {[%clk 0:00:52.6]} 24... Rc2 {[%clk 0:00:20.5]} 25. Rbc1
{[%clk 0:00:50.7]} 25... Rxc1 {[%clk 0:00:16.9]} 26. Rxc1 {[%clk 0:00:51.6]}
26... g5 {[%clk 0:00:15]} 27. h4 {[%clk 0:00:50.1]} 27... g4 {[%clk 0:00:13]}
28. Nfd4 {[%clk 0:00:50.2]} 28... Bxd4 {[%clk 0:00:12.1]} 29. Nxd4 {[%clk
0:00:50]} 29... Nf6 {[%clk 0:00:10.9]} 30. Nc6 {[%clk 0:00:49.7]} 30... Rd7
{[%clk 0:00:10.6]} 31. Rb1 {[%clk 0:00:49.4]} 31... Nfe4 {[%clk 0:00:10.8]} 32.
Bf4 {[%clk 0:00:48.8]} 32... Kg7 {[%clk 0:00:08.3]} 33. Nd4 {[%clk 0:00:48.2]}
33... Nc3 {[%clk 0:00:08.3]} 34. Rb6 {[%clk 0:00:46.5]} 34... Nd3 {[%clk
0:00:05.7]} 35. Bxd6 {[%clk 0:00:45.4]} 35... Ra7 {[%clk 0:00:05.8]} 36. Nf5+
{[%clk 0:00:42.6]} 36... Kh7 {[%clk 0:00:06.3]} 37. Bg3 {[%clk 0:00:37.4]} 37...
Ne2+ {[%clk 0:00:05.8]} 38. Kh2 {[%clk 0:00:37.4]} 38... Ra1 {[%clk 0:00:04.9]}
39. Rxh6+ {[%clk 0:00:36.5]} 39... Kg8 {[%clk 0:00:05.5]} 40. Ne7+ {[%clk
0:00:32.3]} 40... Kf8 {[%clk 0:00:05.5]} 41. d6 {[%clk 0:00:30.6]} 41... Ke8
{[%clk 0:00:05.4]} 42. Nd5 {[%clk 0:00:27.9]} 42... Kd7 {[%clk 0:00:05.3]} 43.
Nb6+ {[%clk 0:00:27.3]} 43... Kc6 {[%clk 0:00:05.2]} 44. d7+ {[%clk 0:00:27.3]}
1-0

[Event "*** Titled Tuesday Blitz"]
[Site "Chess.com"]
[Date "2020.12.29"]
[Round "4"]
[White "Agoking701"]
[Black "Titus369"]
[Result "1-0"]
[WhiteElo "2356"]
[BlackElo "2526"]
[TimeControl "180+1"]
[EndTime "10:39:10 PST"]
[Termination "Agoking701 won by checkmate"]

1. e4 {[%clk 0:02:35.2]} 1... c5 {[%clk 0:02:58.1]} 2. Nf3 {[%clk 0:02:35.4]}
2... d6 {[%clk 0:02:58.5]} 3. Bb5+ {[%clk 0:02:34.6]} 3... Nd7 {[%clk
0:02:57.2]} 4. O-O {[%clk 0:02:33.3]} 4... Nf6 {[%clk 0:02:56]} 5. Re1 {[%clk
0:02:32.3]} 5... a6 {[%clk 0:02:47.7]} 6. Bf1 {[%clk 0:02:32.7]} 6... e6 {[%clk
0:02:47.4]} 7. c3 {[%clk 0:02:32.8]} 7... b5 {[%clk 0:02:47.2]} 8. d4 {[%clk
0:02:31.9]} 8... cxd4 {[%clk 0:02:47.7]} 9. cxd4 {[%clk 0:02:31.9]} 9... Bb7
{[%clk 0:02:48.1]} 10. Bd3 {[%clk 0:02:23.4]} 10... Be7 {[%clk 0:02:46.1]} 11.
a4 {[%clk 0:02:23.7]} 11... b4 {[%clk 0:02:43]} 12. a5 {[%clk 0:02:21.9]} 12...
d5 {[%clk 0:02:43]} 13. e5 {[%clk 0:02:18.7]} 13... Ne4 {[%clk 0:02:42.9]} 14.
Nbd2 {[%clk 0:02:19.4]} 14... Nxd2 {[%clk 0:02:41.5]} 15. Bxd2 {[%clk
0:02:20.3]} 15... O-O {[%clk 0:02:29.3]} 16. h4 {[%clk 0:02:17]} 16... g6 {[%clk
0:02:27.8]} 17. Bh6 {[%clk 0:02:10]} 17... Re8 {[%clk 0:02:27.4]} 18. Qd2 {[%clk
0:02:10.2]} 18... Bxh4 {[%clk 0:02:23.1]} 19. Nxh4 {[%clk 0:01:50.2]} 19... Qxh4
{[%clk 0:02:24]} 20. Bc2 {[%clk 0:01:38.6]} 20... Rac8 {[%clk 0:02:12]} 21. g3
{[%clk 0:01:38.6]} 21... Qh3 {[%clk 0:01:53.1]} 22. Bd3 {[%clk 0:01:21.3]} 22...
Nb8 {[%clk 0:01:25.7]} 23. Bf1 {[%clk 0:01:17.5]} 23... Qh5 {[%clk 0:01:25.1]}
24. Kg2 {[%clk 0:01:11.9]} 24... Nc6 {[%clk 0:01:21.3]} 25. Be2 {[%clk
0:01:11.5]} 25... Qf5 {[%clk 0:01:19.2]} 26. Bf3 {[%clk 0:00:58.6]} 26... b3
{[%clk 0:01:16.4]} 27. Rac1 {[%clk 0:00:53.9]} 27... g5 {[%clk 0:00:49.2]} 28.
Bxg5 {[%clk 0:00:52.8]} 28... Nxd4 {[%clk 0:00:46.4]} 29. Qxd4 {[%clk
0:00:37.3]} 29... Qxg5 {[%clk 0:00:46.4]} 30. Rxc8 {[%clk 0:00:25.1]} 30... Rxc8
{[%clk 0:00:47.3]} 31. Rh1 {[%clk 0:00:25]} 31... Bc6 {[%clk 0:00:21.8]} 32. Rh4
{[%clk 0:00:20.7]} 32... Kf8 {[%clk 0:00:18.8]} 33. Rxh7 {[%clk 0:00:19.4]}
33... Kg8 {[%clk 0:00:12.8]} 34. Rh5 {[%clk 0:00:19.4]} 34... Qg7 {[%clk
0:00:11.1]} 35. Qh4 {[%clk 0:00:19]} 35... Bb5 {[%clk 0:00:03.2]} 36. Rg5 {[%clk
0:00:17.6]} 36... Rc2 {[%clk 0:00:04.1]} 37. Rxg7+ {[%clk 0:00:17.1]} 37... Kxg7
{[%clk 0:00:05]} 38. Qg5+ {[%clk 0:00:17.1]} 38... Kf8 {[%clk 0:00:05.2]} 39.
Qd8+ {[%clk 0:00:15.3]} 39... Kg7 {[%clk 0:00:05.2]} 40. Qf6+ {[%clk 0:00:14.2]}
40... Kg8 {[%clk 0:00:03.8]} 41. Bh5 {[%clk 0:00:14.6]} 41... Rxb2 {[%clk
0:00:03.3]} 42. Bxf7+ {[%clk 0:00:14.6]} 42... Kh7 {[%clk 0:00:02.5]} 43. Qg6+
{[%clk 0:00:13.5]} 43... Kh8 {[%clk 0:00:02.8]} 44. Qh6# {[%clk 0:00:14.1]} 1-0

[Event "*** Titled Tuesday Blitz"]
[Site "Chess.com"]
[Date "2020.12.29"]
[Round "4"]
[White "Klavdia_Nik"]
[Black "ZverevLev"]
[Result "0-1"]
[WhiteElo "2071"]
[BlackElo "2393"]
[TimeControl "180+1"]
[EndTime "10:39:10 PST"]
[Termination "ZverevLev won on time"]

1. Nf3 {[%clk 0:02:19]} 1... d5 {[%clk 0:02:56.8]} 2. c4 {[%clk 0:02:18.1]} 2...
e6 {[%clk 0:02:55.7]} 3. b3 {[%clk 0:02:17.5]} 3... Nf6 {[%clk 0:02:55.2]} 4.
Bb2 {[%clk 0:02:15.5]} 4... Be7 {[%clk 0:02:55.5]} 5. g3 {[%clk 0:02:13.7]} 5...
O-O {[%clk 0:02:55.4]} 6. Bg2 {[%clk 0:02:13.9]} 6... c6 {[%clk 0:02:53.4]} 7.
O-O {[%clk 0:02:13.6]} 7... Nbd7 {[%clk 0:02:52.3]} 8. d3 {[%clk 0:02:09.5]}
8... b6 {[%clk 0:02:49.2]} 9. Nbd2 {[%clk 0:02:06.6]} 9... Bb7 {[%clk
0:02:47.5]} 10. Qc2 {[%clk 0:02:06.6]} 10... Rc8 {[%clk 0:02:42.7]} 11. Rad1
{[%clk 0:02:07]} 11... Qc7 {[%clk 0:02:39.9]} 12. e4 {[%clk 0:02:03.2]} 12... e5
{[%clk 0:02:36.2]} 13. Nh4 {[%clk 0:01:58.6]} 13... d4 {[%clk 0:02:33.7]} 14.
Nf5 {[%clk 0:01:57]} 14... Bc5 {[%clk 0:02:30.4]} 15. a3 {[%clk 0:01:55.1]}
15... a5 {[%clk 0:02:30.1]} 16. h3 {[%clk 0:01:44.6]} 16... g6 {[%clk 0:02:29]}
17. Nh6+ {[%clk 0:01:38.9]} 17... Kg7 {[%clk 0:02:26.6]} 18. Ng4 {[%clk
0:01:38]} 18... Ne8 {[%clk 0:02:21.7]} 19. Bc1 {[%clk 0:01:31.4]} 19... h5
{[%clk 0:02:20.4]} 20. Nh2 {[%clk 0:01:30.1]} 20... Bd6 {[%clk 0:02:19.5]} 21.
Ndf3 {[%clk 0:01:25.4]} 21... f6 {[%clk 0:02:15.8]} 22. Qd2 {[%clk 0:01:20.7]}
22... Rh8 {[%clk 0:02:13.4]} 23. b4 {[%clk 0:01:13.3]} 23... axb4 {[%clk
0:02:12.2]} 24. axb4 {[%clk 0:01:12.9]} 24... Qd8 {[%clk 0:02:12.7]} 25. Nh4
{[%clk 0:00:54.5]} 25... Qe7 {[%clk 0:02:09.6]} 26. c5 {[%clk 0:00:49.5]} 26...
bxc5 {[%clk 0:02:03.1]} 27. bxc5 {[%clk 0:00:48.6]} 27... Nxc5 {[%clk
0:02:03.5]} 28. f4 {[%clk 0:00:28.8]} 28... Ba6 {[%clk 0:00:20.4]} 29. Rf3
{[%clk 0:00:20.4]} 29... Rb8 {[%clk 0:00:17.3]} 30. f5 {[%clk 0:00:18.6]} 30...
g5 {[%clk 0:00:16.5]} 31. Ng6 {[%clk 0:00:18.6]} 31... Qf7 {[%clk 0:00:16.5]}
32. Nxh8 {[%clk 0:00:18.5]} 32... Kxh8 {[%clk 0:00:15.6]} 33. h4 {[%clk
0:00:16.3]} 33... g4 {[%clk 0:00:14.9]} 34. Qh6+ {[%clk 0:00:12.5]} 34... Kg8
{[%clk 0:00:15.8]} 35. Rf2 {[%clk 0:00:09.4]} 35... Bxd3 {[%clk 0:00:15.4]} 36.
Qd2 {[%clk 0:00:05.2]} 36... Bxe4 {[%clk 0:00:15]} 0-1

[Event "*** Titled Tuesday Blitz"]
[Site "Chess.com"]
[Date "2020.12.29"]
[Round "4"]
[White "Chess_Boxer123"]
[Black "BrandonJacobson"]
[Result "0-1"]
[WhiteElo "2557"]
[BlackElo "2920"]
[TimeControl "180+1"]
[EndTime "10:39:11 PST"]
[Termination "BrandonJacobson won on time"]

1. e4 {[%clk 0:02:57.4]} 1... c5 {[%clk 0:02:59.9]} 2. Nf3 {[%clk 0:02:57]} 2...
d6 {[%clk 0:03:00.3]} 3. d4 {[%clk 0:02:55.8]} 3... cxd4 {[%clk 0:03:01.2]} 4.
Nxd4 {[%clk 0:02:56.7]} 4... Nf6 {[%clk 0:03:01.7]} 5. Nc3 {[%clk 0:02:57.1]}
5... Nc6 {[%clk 0:03:02.4]} 6. Be2 {[%clk 0:02:47.6]} 6... e5 {[%clk 0:03:01.4]}
7. Nb3 {[%clk 0:02:44.6]} 7... Be7 {[%clk 0:03:00.8]} 8. O-O {[%clk 0:02:44.7]}
8... O-O {[%clk 0:03:00.6]} 9. f4 {[%clk 0:02:45.2]} 9... a6 {[%clk 0:02:55.6]}
10. a3 {[%clk 0:02:41]} 10... b5 {[%clk 0:02:55.3]} 11. Be3 {[%clk 0:02:36.3]}
11... Bb7 {[%clk 0:02:51.8]} 12. Bf3 {[%clk 0:02:36.2]} 12... Rc8 {[%clk
0:02:31.4]} 13. Nd5 {[%clk 0:02:20.9]} 13... exf4 {[%clk 0:02:04.4]} 14. Bxf4
{[%clk 0:02:15]} 14... Ne5 {[%clk 0:02:00.2]} 15. Bxe5 {[%clk 0:01:45.4]} 15...
dxe5 {[%clk 0:01:59.9]} 16. Kh1 {[%clk 0:01:37.4]} 16... Bxd5 {[%clk 0:01:53.6]}
17. exd5 {[%clk 0:01:36.9]} 17... e4 {[%clk 0:01:54.5]} 18. Bg4 {[%clk
0:01:37.1]} 18... Nxg4 {[%clk 0:01:44.3]} 19. Qxg4 {[%clk 0:01:38]} 19... Qxd5
{[%clk 0:01:44.8]} 20. Rad1 {[%clk 0:01:38.3]} 20... Qe5 {[%clk 0:01:36.3]} 21.
Nd4 {[%clk 0:01:28.5]} 21... h5 {[%clk 0:01:10.9]} 22. Qh3 {[%clk 0:01:10.1]}
22... g6 {[%clk 0:01:00]} 23. c3 {[%clk 0:00:48.5]} 23... a5 {[%clk 0:00:35.3]}
24. Rde1 {[%clk 0:00:40.3]} 24... b4 {[%clk 0:00:26.1]} 25. axb4 {[%clk
0:00:38.9]} 25... axb4 {[%clk 0:00:27]} 26. Qd7 {[%clk 0:00:23.9]} 26... Bd6
{[%clk 0:00:18.5]} 27. g3 {[%clk 0:00:20.8]} 27... bxc3 {[%clk 0:00:16.8]} 28.
bxc3 {[%clk 0:00:16.5]} 28... Rxc3 {[%clk 0:00:17]} 29. Nc6 {[%clk 0:00:17]}
29... Qc5 {[%clk 0:00:12.3]} 30. Nd8 {[%clk 0:00:12.6]} 30... Qd5 {[%clk
0:00:09.8]} 31. Nxf7 {[%clk 0:00:07.4]} 31... e3+ {[%clk 0:00:07.2]} 32. Kg1
{[%clk 0:00:07.5]} 32... Rxf7 {[%clk 0:00:07.7]} 33. Rxf7 {[%clk 0:00:07.6]}
33... Qxf7 {[%clk 0:00:08.1]} 34. Qd8+ {[%clk 0:00:04.4]} 34... Bf8 {[%clk
0:00:07.5]} 35. Rf1 {[%clk 0:00:04.5]} 35... Qg7 {[%clk 0:00:04.3]} 36. Qd5+
{[%clk 0:00:02]} 36... Kh8 {[%clk 0:00:04.9]} 0-1